[Event "Titled Tuesday Blitz May 4 2021"]
[White "Homiakova, Elena"]
[Black "Nguyen, Quoc Hy"]
[WhiteFideId "13507761"]
[BlackFideId "12410853"]
[WhiteElo "2274"]
[BlackElo "1975"]
[Result "0-1"]
[Round "05"]
[TimeControl "180+1"]
[Date "2021.05.04"]
[WhiteClock "0:00:03"]
[BlackClock "0:00:21"]

1. e4 {[%clk 0:03:00]}  c5 {[%clk 0:02:59]} 2. Nf3 {[%clk 0:02:59]}  Nc6 {[%clk 0:02:55]} 3. d4 {[%clk 0:02:59]}  cxd4 {[%clk 0:02:55]} 4. Nxd4 {[%clk 0:02:59]}  Nf6 {[%clk 0:02:55]} 5. Nc3 {[%clk 0:02:59]}  e5 {[%clk 0:02:55]} 6. Ndb5 {[%clk 0:02:59]}  d6 {[%clk 0:02:55]} 7. Nd5 {[%clk 0:03:00]}  Nxd5 {[%clk 0:02:54]} 8. exd5 {[%clk 0:03:00]}  Ne7 {[%clk 0:02:55]} 9. c4 {[%clk 0:02:58]}  Ng6 {[%clk 0:02:50]} 10. Be2 {[%clk 0:02:42]}  Be7 {[%clk 0:02:48]} 11. O-O {[%clk 0:02:41]}  O-O {[%clk 0:02:47]} 12. Kh1 {[%clk 0:02:40]}  f5 {[%clk 0:02:19]} 13. f4 {[%clk 0:02:34]}  a6 {[%clk 0:02:14]} 14. Nc3 {[%clk 0:02:30]}  exf4 {[%clk 0:02:14]} 15. Bxf4 {[%clk 0:02:29]}  Bg5 {[%clk 0:02:12]} 16. Bxg5 {[%clk 0:02:16]}  Qxg5 {[%clk 0:02:12]} 17. Qd4 {[%clk 0:02:02]}  Bd7 {[%clk 0:02:02]} 18. b4 {[%clk 0:01:54]}  Rae8 {[%clk 0:01:52]} 19. Bf3 {[%clk 0:01:47]}  Ne5 {[%clk 0:01:15]} 20. c5 {[%clk 0:01:33]}  Rf6 {[%clk 0:01:05]} 21. c6 {[%clk 0:00:40]}  Bc8 {[%clk 0:00:35]} 22. b5 {[%clk 0:00:29]}  Rh6 {[%clk 0:00:31]} 23. Rae1 {[%clk 0:00:25]}  Rh4 {[%clk 0:00:30]} 24. Qf2 {[%clk 0:00:17]}  Rc4 {[%clk 0:00:24]} 25. Ne2 {[%clk 0:00:13]}  axb5 {[%clk 0:00:24]} 26. cxb7 {[%clk 0:00:08]}  Bxb7 {[%clk 0:00:23]} 27. Rc1 {[%clk 0:00:08]}  Nd3 {[%clk 0:00:22]} 28. Qb6 {[%clk 0:00:03]}  Nxc1 {[%clk 0:00:21]} 0-1


[Site "https://www.chess.com"]

[Event "Titled Tuesday Blitz May 4 2021"]
[White "Isajevsky, Anton"]
[Black "Alavi, Sayed Javad"]
[WhiteFideId "4142500"]
[BlackFideId "12500607"]
[WhiteElo "2510"]
[BlackElo "2495"]
[Result "0-1"]
[Round "05"]
[TimeControl "180+1"]
[Date "2021.05.04"]
[WhiteClock "0:00:04"]
[BlackClock "0:00:11"]

1. c4 {[%clk 0:02:56]}  e5 {[%clk 0:02:59]} 2. g3 {[%clk 0:02:56]}  d6 {[%clk 0:02:59]} 3. Bg2 {[%clk 0:02:55]}  Nc6 {[%clk 0:02:58]} 4. Nc3 {[%clk 0:02:55]}  f5 {[%clk 0:02:56]} 5. d3 {[%clk 0:02:53]}  Nf6 {[%clk 0:02:56]} 6. e3 {[%clk 0:02:52]}  g6 {[%clk 0:02:50]} 7. Nge2 {[%clk 0:02:52]}  Bg7 {[%clk 0:02:50]} 8. O-O {[%clk 0:02:52]}  O-O {[%clk 0:02:50]} 9. Rb1 {[%clk 0:02:53]}  a5 {[%clk 0:02:40]} 10. a3 {[%clk 0:02:52]}  Be6 {[%clk 0:02:40]} 11. Nd5 {[%clk 0:02:52]}  Qd7 {[%clk 0:02:38]} 12. b4 {[%clk 0:02:49]}  axb4 {[%clk 0:02:39]} 13. axb4 {[%clk 0:02:49]}  Nd8 {[%clk 0:02:37]} 14. Bb2 {[%clk 0:02:21]}  Nxd5 {[%clk 0:02:35]} 15. cxd5 {[%clk 0:02:20]}  Bf7 {[%clk 0:02:36]} 16. Nc3 {[%clk 0:02:04]}  g5 {[%clk 0:02:14]} 17. Ra1 {[%clk 0:02:03]}  Rxa1 {[%clk 0:02:12]} 18. Qxa1 {[%clk 0:02:03]}  Bg6 {[%clk 0:02:05]} 19. Rc1 {[%clk 0:00:53]}  f4 {[%clk 0:01:58]} 20. exf4 {[%clk 0:00:50]}  gxf4 {[%clk 0:01:52]} 21. Ne4 {[%clk 0:00:48]}  f3 {[%clk 0:01:43]} 22. Bf1 {[%clk 0:00:47]}  Bf7 {[%clk 0:01:23]} 23. Qa5 {[%clk 0:00:37]}  c6 {[%clk 0:01:20]} 24. dxc6 {[%clk 0:00:28]}  bxc6 {[%clk 0:01:21]} 25. Qb6 {[%clk 0:00:20]}  Be6 {[%clk 0:01:14]} 26. d4 {[%clk 0:00:18]}  Bf5 {[%clk 0:00:47]} 27. Re1 {[%clk 0:00:15]}  Bxe4 {[%clk 0:00:28]} 28. Rxe4 {[%clk 0:00:14]}  d5 {[%clk 0:00:29]} 29. Rxe5 {[%clk 0:00:12]}  Bxe5 {[%clk 0:00:28]} 30. dxe5 {[%clk 0:00:13]}  Ne6 {[%clk 0:00:27]} 31. h4 {[%clk 0:00:11]}  Nf4 {[%clk 0:00:23]} 32. Kh2 {[%clk 0:00:08]}  Ne6 {[%clk 0:00:19]} 33. Qe3 {[%clk 0:00:03]}  Qe7 {[%clk 0:00:17]} 34. Bh3 {[%clk 0:00:03]}  Re8 {[%clk 0:00:15]} 35. Qxf3 {[%clk 0:00:02]}  Qxb4 {[%clk 0:00:15]} 36. Bf5 {[%clk 0:00:02]}  Qxb2 {[%clk 0:00:13]} 37. Qg4+ {[%clk 0:00:02]}  Kf8 {[%clk 0:00:12]} 38. Bxe6 {[%clk 0:00:02]}  Qxf2+ {[%clk 0:00:12]} 39. Kh3 {[%clk 0:00:03]}  Qf1+ {[%clk 0:00:12]} 40. Kh2 {[%clk 0:00:03]}  Qf2+ {[%clk 0:00:12]} 41. Kh3 {[%clk 0:00:04]}  Qf1+ {[%clk 0:00:12]} 42. Kh2 {[%clk 0:00:04]}  Ke7 {[%clk 0:00:12]} 43. Bd7 {[%clk 0:00:03]}  Rf8 {[%clk 0:00:12]} 44. Qe6+ {[%clk 0:00:03]}  Kd8 {[%clk 0:00:12]} 45. Bxc6 {[%clk 0:00:04]}  Rf2# {[%clk 0:00:11]} 0-1


[Site "https://www.chess.com"]

[Event "Titled Tuesday Blitz May 4 2021"]
[White "Ivanov, Mike"]
[Black "Bendayan Claros, Aaron"]
[WhiteFideId "2613158"]
[BlackFideId "3803392"]
[WhiteElo "2197"]
[BlackElo "2166"]
[Result "1-0"]
[Round "05"]
[TimeControl "180+1"]
[Date "2021.05.04"]
[WhiteClock "0:00:29"]
[BlackClock "0:00:01"]

1. e4 {[%clk 0:03:00]}  c6 {[%clk 0:02:59]} 2. Nf3 {[%clk 0:03:00]}  d5 {[%clk 0:02:59]} 3. Nc3 {[%clk 0:03:01]}  dxe4 {[%clk 0:02:59]} 4. Nxe4 {[%clk 0:03:00]}  Nf6 {[%clk 0:03:00]} 5. Qe2 {[%clk 0:03:00]}  Nxe4 {[%clk 0:02:59]} 6. Qxe4 {[%clk 0:03:01]}  Nd7 {[%clk 0:02:59]} 7. Bc4 {[%clk 0:03:00]}  Nf6 {[%clk 0:02:59]} 8. Ne5 {[%clk 0:03:01]}  e6 {[%clk 0:02:58]} 9. Qe2 {[%clk 0:03:00]}  Be7 {[%clk 0:02:53]} 10. c3 {[%clk 0:02:55]}  O-O {[%clk 0:02:52]} 11. d4 {[%clk 0:02:55]}  c5 {[%clk 0:02:49]} 12. Be3 {[%clk 0:02:54]}  cxd4 {[%clk 0:02:48]} 13. Bxd4 {[%clk 0:02:55]}  a6 {[%clk 0:02:44]} 14. O-O-O {[%clk 0:02:53]}  Qc7 {[%clk 0:02:43]} 15. Bd3 {[%clk 0:02:50]}  b5 {[%clk 0:02:37]} 16. Kb1 {[%clk 0:02:48]}  Bb7 {[%clk 0:02:36]} 17. h4 {[%clk 0:02:46]}  Rad8 {[%clk 0:01:45]} 18. h5 {[%clk 0:02:45]}  Nd7 {[%clk 0:01:37]} 19. h6 {[%clk 0:02:36]}  g6 {[%clk 0:00:56]} 20. Nxg6 {[%clk 0:02:30]}  fxg6 {[%clk 0:00:29]} 21. Qxe6+ {[%clk 0:02:19]}  Rf7 {[%clk 0:00:29]} 22. Bxg6 {[%clk 0:02:15]}  Rf8 {[%clk 0:00:27]} 23. Rh3 {[%clk 0:01:44]}  Qc6 {[%clk 0:00:13]} 24. Bxf7+ {[%clk 0:01:33]}  Rxf7 {[%clk 0:00:12]} 25. Rg3+ {[%clk 0:01:32]}  Kf8 {[%clk 0:00:11]} 26. Bg7+ {[%clk 0:00:51]}  Ke8 {[%clk 0:00:09]} 27. Qh3 {[%clk 0:00:51]}  Qe4+ {[%clk 0:00:08]} 28. Ka1 {[%clk 0:00:51]}  Bc6 {[%clk 0:00:04]} 29. Re3 {[%clk 0:00:46]}  Qxg2 {[%clk 0:00:03]} 30. Qh5 {[%clk 0:00:32]}  Qxf2 {[%clk 0:00:02]} 31. Rde1 {[%clk 0:00:32]}  Qxe3 {[%clk 0:00:01]} 32. Rxe3 {[%clk 0:00:32]}  Kd8 {[%clk 0:00:01]} 33. Qxf7 {[%clk 0:00:29]} 1-0


[Site "https://www.chess.com"]

[Event "Titled Tuesday Blitz May 4 2021"]
[White "Jarovinsky, Alexey"]
[Black "Prithu Gupta"]
[WhiteFideId "14115131"]
[BlackFideId "46618546"]
[WhiteElo "2446"]
[BlackElo "1775"]
[Result "1/2-1/2"]
[Round "05"]
[TimeControl "180+1"]
[Date "2021.05.04"]
[WhiteClock "0:00:04"]
[BlackClock "0:00:08"]

1. Nc3 {[%clk 0:03:00]}  d5 {[%clk 0:02:57]} 2. e4 {[%clk 0:02:59]}  dxe4 {[%clk 0:02:57]} 3. Nxe4 {[%clk 0:02:59]}  Nd7 {[%clk 0:02:58]} 4. Bc4 {[%clk 0:02:57]}  e6 {[%clk 0:02:56]} 5. Qe2 {[%clk 0:02:51]}  Ngf6 {[%clk 0:02:55]} 6. Ng5 {[%clk 0:02:49]}  Nb6 {[%clk 0:02:40]} 7. Bb3 {[%clk 0:02:48]}  Be7 {[%clk 0:02:40]} 8. N1f3 {[%clk 0:02:47]}  c5 {[%clk 0:02:38]} 9. O-O {[%clk 0:02:44]}  O-O {[%clk 0:02:39]} 10. c3 {[%clk 0:02:42]}  h6 {[%clk 0:02:36]} 11. Ne4 {[%clk 0:02:41]}  Bd7 {[%clk 0:02:34]} 12. Ne5 {[%clk 0:02:38]}  Rc8 {[%clk 0:02:31]} 13. Nxd7 {[%clk 0:02:29]}  Qxd7 {[%clk 0:02:31]} 14. d3 {[%clk 0:02:16]}  Nbd5 {[%clk 0:02:26]} 15. Rd1 {[%clk 0:02:13]}  b5 {[%clk 0:02:26]} 16. a3 {[%clk 0:02:04]}  Rfd8 {[%clk 0:02:25]} 17. d4 {[%clk 0:02:01]}  cxd4 {[%clk 0:02:25]} 18. Rxd4 {[%clk 0:01:59]}  Qb7 {[%clk 0:02:23]} 19. Bd2 {[%clk 0:01:47]}  a5 {[%clk 0:01:59]} 20. Rd1 {[%clk 0:01:44]}  b4 {[%clk 0:01:50]} 21. axb4 {[%clk 0:01:41]}  axb4 {[%clk 0:01:51]} 22. c4 {[%clk 0:01:41]}  Nc7 {[%clk 0:01:44]} 23. Nxf6+ {[%clk 0:01:30]}  Bxf6 {[%clk 0:01:43]} 24. Rxd8+ {[%clk 0:01:31]}  Rxd8 {[%clk 0:01:44]} 25. Be3 {[%clk 0:01:22]}  Rxd1+ {[%clk 0:01:29]} 26. Bxd1 {[%clk 0:01:23]}  Qe4 {[%clk 0:01:22]} 27. b3 {[%clk 0:01:19]}  e5 {[%clk 0:01:14]} 28. Bc2 {[%clk 0:01:16]}  Qc6 {[%clk 0:01:10]} 29. Qd3 {[%clk 0:01:10]}  Ne6 {[%clk 0:00:58]} 30. Qh7+ {[%clk 0:00:56]}  Kf8 {[%clk 0:00:57]} 31. Be4 {[%clk 0:00:56]}  Qd6 {[%clk 0:00:49]} 32. Bd5 {[%clk 0:00:47]}  Ke7 {[%clk 0:00:46]} 33. Qg8 {[%clk 0:00:38]}  Nd8 {[%clk 0:00:24]} 34. h3 {[%clk 0:00:30]}  e4 {[%clk 0:00:23]} 35. Bxe4 {[%clk 0:00:13]}  Qd1+ {[%clk 0:00:23]} 36. Kh2 {[%clk 0:00:13]}  Qxb3 {[%clk 0:00:14]} 37. Bc5+ {[%clk 0:00:12]}  Kd7 {[%clk 0:00:14]} 38. Bd5 {[%clk 0:00:11]}  Be5+ {[%clk 0:00:11]} 39. g3 {[%clk 0:00:10]}  Qc2 {[%clk 0:00:08]} 40. Bb6 {[%clk 0:00:07]}  Bxg3+ {[%clk 0:00:07]} 41. Kxg3 {[%clk 0:00:06]}  Qg6+ {[%clk 0:00:07]} 42. Kf3 {[%clk 0:00:05]}  Qxb6 {[%clk 0:00:08]} 43. Qxg7 {[%clk 0:00:04]}  Qd6 {[%clk 0:00:08]} 44. Qb2 {[%clk 0:00:04]}  Ne6 {[%clk 0:00:08]} 45. Ke3 {[%clk 0:00:04]}  Qc5+ {[%clk 0:00:08]} 46. Kd2 {[%clk 0:00:03]}  Nd4 {[%clk 0:00:08]} 47. Kc1 {[%clk 0:00:02]}  b3 {[%clk 0:00:07]} 48. Kb1 {[%clk 0:00:02]}  Kd6 {[%clk 0:00:08]} 49. Qd2 {[%clk 0:00:02]}  Qa3 {[%clk 0:00:07]} 50. Qf4+ {[%clk 0:00:02]}  Kc5 {[%clk 0:00:07]} 51. Qc7+ {[%clk 0:00:02]}  Kb4 {[%clk 0:00:07]} 52. Qd6+ {[%clk 0:00:02]}  Ka4 {[%clk 0:00:07]} 53. Qa6+ {[%clk 0:00:03]}  Kb4 {[%clk 0:00:07]} 54. Qd6+ {[%clk 0:00:03]}  Ka4 {[%clk 0:00:07]} 55. Qa6+ {[%clk 0:00:03]}  Kb4 {[%clk 0:00:08]} 56. Qd6+ {[%clk 0:00:04]} 1/2-1/2


[Site "https://www.chess.com"]

[Event "Titled Tuesday Blitz May 4 2021"]
[White "Jobava, Baadur"]
[Black "Arkell, Keith C"]
[WhiteFideId "13601520"]
[BlackFideId "400270"]
[WhiteElo "2748"]
[BlackElo "2398"]
[Result "1-0"]
[Round "05"]
[TimeControl "180+1"]
[Date "2021.05.04"]
[WhiteClock "0:00:42"]
[BlackClock "0:00:02"]

1. d4 {[%clk 0:03:00]}  e6 {[%clk 0:02:56]} 2. Nc3 {[%clk 0:03:00]}  d5 {[%clk 0:02:55]} 3. Bf4 {[%clk 0:03:00]}  Bd6 {[%clk 0:02:51]} 4. e3 {[%clk 0:02:59]}  a6 {[%clk 0:02:50]} 5. Nf3 {[%clk 0:02:54]}  c5 {[%clk 0:02:49]} 6. dxc5 {[%clk 0:02:51]}  Bxf4 {[%clk 0:02:46]} 7. exf4 {[%clk 0:02:50]}  Qc7 {[%clk 0:02:40]} 8. Bd3 {[%clk 0:02:38]}  Qxf4 {[%clk 0:02:34]} 9. O-O {[%clk 0:02:37]}  Nf6 {[%clk 0:02:25]} 10. Re1 {[%clk 0:02:30]}  Nbd7 {[%clk 0:02:19]} 11. Ne2 {[%clk 0:01:51]}  Qc7 {[%clk 0:02:12]} 12. b4 {[%clk 0:01:48]}  b6 {[%clk 0:02:10]} 13. cxb6 {[%clk 0:01:47]}  Nxb6 {[%clk 0:02:07]} 14. Ned4 {[%clk 0:01:47]}  O-O {[%clk 0:02:05]} 15. a4 {[%clk 0:01:46]}  a5 {[%clk 0:02:04]} 16. Nb5 {[%clk 0:01:38]}  Qe7 {[%clk 0:02:00]} 17. bxa5 {[%clk 0:01:38]}  Rxa5 {[%clk 0:01:58]} 18. Nfd4 {[%clk 0:01:38]}  Bd7 {[%clk 0:01:52]} 19. c3 {[%clk 0:01:32]}  g6 {[%clk 0:01:45]} 20. Bc2 {[%clk 0:01:22]}  Rfa8 {[%clk 0:01:42]} 21. h3 {[%clk 0:01:19]}  Bxb5 {[%clk 0:01:40]} 22. Nxb5 {[%clk 0:01:18]}  Qc5 {[%clk 0:01:27]} 23. Qf3 {[%clk 0:01:14]}  Nxa4 {[%clk 0:00:50]} 24. Qxf6 {[%clk 0:01:05]}  Qxb5 {[%clk 0:00:46]} 25. h4 {[%clk 0:00:52]}  Qb6 {[%clk 0:00:31]} 26. h5 {[%clk 0:00:48]}  e5 {[%clk 0:00:09]} 27. Qxe5 {[%clk 0:00:45]}  gxh5 {[%clk 0:00:03]} 28. Qxh5 {[%clk 0:00:42]}  d4 {[%clk 0:00:02]} 29. Qxh7+ {[%clk 0:00:41]}  Kf8 {[%clk 0:00:02]} 30. Qh8# {[%clk 0:00:42]} 1-0


[Site "https://www.chess.com"]

[Event "Titled Tuesday Blitz May 4 2021"]
[White "Kanyamarala, Trisha"]
[Black "Novikov, Evgenij"]
[WhiteFideId "45004722"]
[BlackFideId "4125380"]
[WhiteElo "2074"]
[BlackElo "2242"]
[Result "0-1"]
[Round "05"]
[TimeControl "180+1"]
[Date "2021.05.04"]
[WhiteClock "0:00:01"]
[BlackClock "0:00:28"]

1. d4 {[%clk 0:03:00]}  Nf6 {[%clk 0:02:59]} 2. c4 {[%clk 0:02:59]}  c5 {[%clk 0:02:58]} 3. d5 {[%clk 0:02:53]}  b5 {[%clk 0:02:59]} 4. Nf3 {[%clk 0:02:49]}  d6 {[%clk 0:02:57]} 5. Nc3 {[%clk 0:02:46]}  b4 {[%clk 0:02:55]} 6. Nb1 {[%clk 0:02:46]}  g6 {[%clk 0:02:52]} 7. Nbd2 {[%clk 0:02:45]}  Bg7 {[%clk 0:02:52]} 8. e4 {[%clk 0:02:45]}  O-O {[%clk 0:02:53]} 9. Be2 {[%clk 0:02:42]}  a5 {[%clk 0:02:53]} 10. O-O {[%clk 0:02:41]}  a4 {[%clk 0:02:51]} 11. Rb1 {[%clk 0:02:38]}  Nbd7 {[%clk 0:02:43]} 12. h3 {[%clk 0:02:36]}  Nb6 {[%clk 0:02:38]} 13. Re1 {[%clk 0:02:33]}  Nfd7 {[%clk 0:02:35]} 14. Nf1 {[%clk 0:02:04]}  Ba6 {[%clk 0:02:32]} 15. b3 {[%clk 0:01:59]}  axb3 {[%clk 0:02:32]} 16. axb3 {[%clk 0:01:58]}  Bb7 {[%clk 0:02:23]} 17. Bb2 {[%clk 0:01:58]}  Bxb2 {[%clk 0:01:58]} 18. Rxb2 {[%clk 0:01:59]}  Ra3 {[%clk 0:01:58]} 19. Qc1 {[%clk 0:01:51]}  f6 {[%clk 0:01:44]} 20. Qh6 {[%clk 0:01:43]}  Rf7 {[%clk 0:01:28]} 21. N1h2 {[%clk 0:01:39]}  Qf8 {[%clk 0:01:25]} 22. Qd2 {[%clk 0:01:37]}  Ne5 {[%clk 0:01:21]} 23. Nxe5 {[%clk 0:01:34]}  fxe5 {[%clk 0:01:19]} 24. Ng4 {[%clk 0:01:17]}  Kh8 {[%clk 0:01:18]} 25. Bd3 {[%clk 0:01:07]}  Bc8 {[%clk 0:01:17]} 26. Qe2 {[%clk 0:00:47]}  Bxg4 {[%clk 0:01:14]} 27. Qxg4 {[%clk 0:00:45]}  Na4 {[%clk 0:01:11]} 28. Rbb1 {[%clk 0:00:30]}  Nc3 {[%clk 0:01:09]} 29. Rb2 {[%clk 0:00:26]}  Kg7 {[%clk 0:00:45]} 30. Qg3 {[%clk 0:00:12]}  h6 {[%clk 0:00:41]} 31. Qe3 {[%clk 0:00:11]}  g5 {[%clk 0:00:37]} 32. Rc1 {[%clk 0:00:07]}  Rf4 {[%clk 0:00:33]} 33. Re1 {[%clk 0:00:04]}  Kg6 {[%clk 0:00:33]} 34. g3 {[%clk 0:00:02]}  Rf3 {[%clk 0:00:32]} 35. Qd2 {[%clk 0:00:01]}  h5 {[%clk 0:00:30]} 36. Be2 {[%clk 0:00:01]}  Nxe2+ {[%clk 0:00:28]} 0-1


[Site "https://www.chess.com"]

[Event "Titled Tuesday Blitz May 4 2021"]
[White "Kapitanchuk, Tomas"]
[Black "freshfoodcompany"]
[WhiteFideId "135046"]
[WhiteElo "1955"]
[BlackElo "2384"]
[Result "0-1"]
[Round "05"]
[TimeControl "180+1"]
[Date "2021.05.04"]
[WhiteClock "0:00:25"]
[BlackClock "0:00:07"]

1. e4 {[%clk 0:03:00]}  c6 {[%clk 0:02:59]} 2. d4 {[%clk 0:02:59]}  d5 {[%clk 0:02:59]} 3. exd5 {[%clk 0:03:00]}  cxd5 {[%clk 0:02:59]} 4. Bd3 {[%clk 0:03:01]}  Nc6 {[%clk 0:03:00]} 5. c3 {[%clk 0:03:01]}  Nf6 {[%clk 0:03:00]} 6. Bf4 {[%clk 0:03:01]}  Bg4 {[%clk 0:03:00]} 7. Qb3 {[%clk 0:03:01]}  Qd7 {[%clk 0:02:59]} 8. Nd2 {[%clk 0:03:00]}  e6 {[%clk 0:02:59]} 9. Ne2 {[%clk 0:03:00]}  Bd6 {[%clk 0:02:57]} 10. Bxd6 {[%clk 0:02:59]}  Qxd6 {[%clk 0:02:58]} 11. Ng3 {[%clk 0:02:58]}  O-O {[%clk 0:02:57]} 12. O-O {[%clk 0:02:58]}  Bh5 {[%clk 0:02:52]} 13. Nxh5 {[%clk 0:02:57]}  Nxh5 {[%clk 0:02:51]} 14. Rfe1 {[%clk 0:02:57]}  Nf4 {[%clk 0:02:50]} 15. Bf1 {[%clk 0:02:58]}  b6 {[%clk 0:02:48]} 16. g3 {[%clk 0:02:55]}  Ng6 {[%clk 0:02:45]} 17. h4 {[%clk 0:02:53]}  Nge7 {[%clk 0:02:41]} 18. Qd1 {[%clk 0:02:49]}  Rae8 {[%clk 0:02:38]} 19. Qh5 {[%clk 0:02:48]}  Ng6 {[%clk 0:02:36]} 20. Bg2 {[%clk 0:02:43]}  f5 {[%clk 0:02:34]} 21. f4 {[%clk 0:02:40]}  Nd8 {[%clk 0:02:26]} 22. Qe2 {[%clk 0:02:32]}  Ne7 {[%clk 0:02:24]} 23. Nf3 {[%clk 0:02:28]}  Nec6 {[%clk 0:02:23]} 24. Ne5 {[%clk 0:02:26]}  Nf7 {[%clk 0:02:20]} 25. Nd3 {[%clk 0:02:22]}  Nh6 {[%clk 0:02:18]} 26. Bf3 {[%clk 0:02:21]}  Kh8 {[%clk 0:02:13]} 27. Kh2 {[%clk 0:02:18]}  Ng8 {[%clk 0:02:13]} 28. Bh5 {[%clk 0:02:15]}  Re7 {[%clk 0:02:11]} 29. Ne5 {[%clk 0:02:12]}  Nf6 {[%clk 0:02:04]} 30. Bf3 {[%clk 0:02:11]}  Ne4 {[%clk 0:02:01]} 31. Bxe4 {[%clk 0:02:11]}  dxe4 {[%clk 0:01:56]} 32. Qh5 {[%clk 0:02:09]}  Nxe5 {[%clk 0:01:54]} 33. fxe5 {[%clk 0:02:10]}  Qd7 {[%clk 0:01:52]} 34. Rf1 {[%clk 0:02:07]}  Qe8 {[%clk 0:01:51]} 35. Qe2 {[%clk 0:02:05]}  Qg6 {[%clk 0:01:48]} 36. Rf4 {[%clk 0:02:04]}  Ref7 {[%clk 0:01:44]} 37. Raf1 {[%clk 0:02:04]}  h6 {[%clk 0:01:41]} 38. h5 {[%clk 0:01:55]}  Qg5 {[%clk 0:01:39]} 39. Kg2 {[%clk 0:01:51]}  Kg8 {[%clk 0:01:35]} 40. Rh1 {[%clk 0:01:48]}  Rd8 {[%clk 0:01:29]} 41. Qc4 {[%clk 0:01:42]}  Qe7 {[%clk 0:01:21]} 42. Rhf1 {[%clk 0:01:37]}  Qd7 {[%clk 0:01:19]} 43. g4 {[%clk 0:01:33]}  Rc8 {[%clk 0:01:01]} 44. Qe2 {[%clk 0:01:27]}  Rcf8 {[%clk 0:00:59]} 45. gxf5 {[%clk 0:01:18]}  Rxf5 {[%clk 0:00:53]} 46. Qxe4 {[%clk 0:01:16]}  Rg5+ {[%clk 0:00:43]} 47. Rg4 {[%clk 0:01:15]}  Rxg4+ {[%clk 0:00:18]} 48. Qxg4 {[%clk 0:01:16]}  Qd5+ {[%clk 0:00:18]} 49. Rf3 {[%clk 0:01:16]}  Rxf3 {[%clk 0:00:14]} 50. Qxf3 {[%clk 0:01:17]}  Qxa2 {[%clk 0:00:14]} 51. Qa8+ {[%clk 0:01:11]}  Kh7 {[%clk 0:00:14]} 52. Qe4+ {[%clk 0:01:10]}  Kg8 {[%clk 0:00:14]} 53. Qe2 {[%clk 0:01:08]}  Qd5+ {[%clk 0:00:14]} 54. Kg3 {[%clk 0:01:08]}  Qd7 {[%clk 0:00:13]} 55. Qe4 {[%clk 0:01:06]}  Qf7 {[%clk 0:00:12]} 56. Qf3 {[%clk 0:01:02]}  Qe7 {[%clk 0:00:09]} 57. Qa8+ {[%clk 0:01:01]}  Kh7 {[%clk 0:00:09]} 58. Qe4+ {[%clk 0:01:02]}  Kg8 {[%clk 0:00:09]} 59. Qg6 {[%clk 0:01:02]}  Qf7 {[%clk 0:00:07]} 60. Qxf7+ {[%clk 0:01:01]}  Kxf7 {[%clk 0:00:08]} 61. c4 {[%clk 0:01:01]}  g5 {[%clk 0:00:08]} 62. hxg6+ {[%clk 0:01:00]}  Kxg6 {[%clk 0:00:08]} 63. d5 {[%clk 0:01:00]}  exd5 {[%clk 0:00:07]} 64. cxd5 {[%clk 0:01:01]}  Kf5 {[%clk 0:00:08]} 65. d6 {[%clk 0:00:59]}  Ke6 {[%clk 0:00:08]} 66. Kh4 {[%clk 0:00:55]}  a5 {[%clk 0:00:08]} 67. Kh5 {[%clk 0:00:53]}  b5 {[%clk 0:00:08]} 68. Kg6 {[%clk 0:00:48]}  a4 {[%clk 0:00:08]} 69. Kg7 {[%clk 0:00:49]}  b4 {[%clk 0:00:07]} 70. Kf8 {[%clk 0:00:49]}  a3 {[%clk 0:00:04]} 71. bxa3 {[%clk 0:00:49]}  bxa3 {[%clk 0:00:04]} 72. Ke8 {[%clk 0:00:50]}  a2 {[%clk 0:00:04]} 73. d7 {[%clk 0:00:50]}  a1=Q {[%clk 0:00:04]} 74. d8=Q {[%clk 0:00:51]}  Qa4+ {[%clk 0:00:03]} 75. Kf8 {[%clk 0:00:51]}  Qf4+ {[%clk 0:00:03]} 76. Kg8 {[%clk 0:00:21]}  Qg5+ {[%clk 0:00:03]} 77. Qxg5 {[%clk 0:00:20]}  hxg5 {[%clk 0:00:04]} 78. Kg7 {[%clk 0:00:19]}  g4 {[%clk 0:00:05]} 79. Kg6 {[%clk 0:00:19]}  g3 {[%clk 0:00:05]} 80. Kg5 {[%clk 0:00:20]}  g2 {[%clk 0:00:06]} 81. Kf4 {[%clk 0:00:21]}  g1=Q {[%clk 0:00:06]} 82. Ke4 {[%clk 0:00:22]}  Qc5 {[%clk 0:00:07]} 83. Kf4 {[%clk 0:00:22]}  Qxe5+ {[%clk 0:00:07]} 84. Kg4 {[%clk 0:00:23]}  Kf6 {[%clk 0:00:08]} 85. Kf3 {[%clk 0:00:22]}  Kf5 {[%clk 0:00:07]} 86. Kg2 {[%clk 0:00:23]}  Qf4 {[%clk 0:00:07]} 87. Kg1 {[%clk 0:00:23]}  Qf3 {[%clk 0:00:07]} 88. Kh2 {[%clk 0:00:24]}  Kg4 {[%clk 0:00:06]} 89. Kg1 {[%clk 0:00:24]}  Qe2 {[%clk 0:00:06]} 90. Kh1 {[%clk 0:00:25]}  Kg3 {[%clk 0:00:07]} 91. Kg1 {[%clk 0:00:25]}  Qe1# {[%clk 0:00:07]} 0-1


[Site "https://www.chess.com"]

[Event "Titled Tuesday Blitz May 4 2021"]
[White "Karttunen, Mika"]
[Black "Prydun, Andriy"]
[WhiteFideId "502081"]
[BlackFideId "14145898"]
[WhiteElo "2343"]
[BlackElo "2033"]
[Result "1-0"]
[Round "05"]
[TimeControl "180+1"]
[Date "2021.05.04"]
[WhiteClock "0:01:02"]
[BlackClock "0:00:24"]

1. d4 {[%clk 0:03:00]}  d5 {[%clk 0:01:31]} 2. Bf4 {[%clk 0:02:56]}  Nc6 {[%clk 0:01:27]} 3. Nf3 {[%clk 0:02:56]}  Bg4 {[%clk 0:01:27]} 4. Nbd2 {[%clk 0:02:55]}  f6 {[%clk 0:01:26]} 5. h3 {[%clk 0:02:50]}  Bh5 {[%clk 0:01:25]} 6. g4 {[%clk 0:02:46]}  Bf7 {[%clk 0:01:25]} 7. Bg2 {[%clk 0:02:44]}  Qd7 {[%clk 0:01:23]} 8. a3 {[%clk 0:02:41]}  Nxd4 {[%clk 0:01:14]} 9. Nxd4 {[%clk 0:02:37]}  e5 {[%clk 0:01:14]} 10. Bxe5 {[%clk 0:02:16]}  fxe5 {[%clk 0:01:15]} 11. Nf5 {[%clk 0:02:16]}  g6 {[%clk 0:01:12]} 12. Ng3 {[%clk 0:02:02]}  e4 {[%clk 0:01:12]} 13. e3 {[%clk 0:01:56]}  Bd6 {[%clk 0:01:11]} 14. Ne2 {[%clk 0:01:51]}  h5 {[%clk 0:01:09]} 15. gxh5 {[%clk 0:01:48]}  Rxh5 {[%clk 0:01:09]} 16. c4 {[%clk 0:01:48]}  Nf6 {[%clk 0:01:05]} 17. Qc2 {[%clk 0:01:36]}  Qe7 {[%clk 0:00:47]} 18. b4 {[%clk 0:01:28]}  O-O-O {[%clk 0:00:45]} 19. c5 {[%clk 0:01:18]}  Be5 {[%clk 0:00:45]} 20. O-O-O {[%clk 0:01:18]}  d4 {[%clk 0:00:32]} 21. exd4 {[%clk 0:01:16]}  Bxd4 {[%clk 0:00:30]} 22. Nxe4 {[%clk 0:01:04]}  Nxe4 {[%clk 0:00:29]} 23. Qxe4 {[%clk 0:01:03]}  Re5 {[%clk 0:00:24]} 24. Qxb7+ {[%clk 0:01:02]} 1-0


[Site "https://www.chess.com"]